[Event "*** Titled Tuesday Blitz"]
[Site "Chess.com"]
[Date "2021.02.16"]
[Round "7"]
[White "TST2014"]
[Black "shaheus"]
[Result "0-1"]
[WhiteElo "2562"]
[BlackElo "2424"]
[TimeControl "180+1"]
[EndTime "11:18:28 PST"]
[Termination "shaheus won by checkmate"]

1. d4 {[%clk 0:03:00.9]} 1... Nf6 {[%clk 0:02:59.3]} 2. c4 {[%clk 0:02:59.7]}
2... g6 {[%clk 0:02:59.7]} 3. Nc3 {[%clk 0:02:59.3]} 3... Bg7 {[%clk 0:03:00.3]}
4. e4 {[%clk 0:02:59.4]} 4... d6 {[%clk 0:03:00.9]} 5. Nf3 {[%clk 0:02:59.6]}
5... O-O {[%clk 0:03:01.1]} 6. Be2 {[%clk 0:02:59.7]} 6... e5 {[%clk 0:03:01.2]}
7. O-O {[%clk 0:02:59.6]} 7... Nc6 {[%clk 0:03:01]} 8. d5 {[%clk 0:02:59.6]}
8... Ne7 {[%clk 0:03:01.4]} 9. b4 {[%clk 0:02:59.8]} 9... a5 {[%clk 0:03:00.3]}
10. bxa5 {[%clk 0:02:59.3]} 10... Rxa5 {[%clk 0:02:59.8]} 11. a4 {[%clk
0:02:58.5]} 11... Nh5 {[%clk 0:02:53.4]} 12. g3 {[%clk 0:02:54.9]} 12... Bh3
{[%clk 0:02:23.1]} 13. Re1 {[%clk 0:02:53.2]} 13... Bg4 {[%clk 0:02:23.2]} 14.
Ba3 {[%clk 0:02:43.3]} 14... f5 {[%clk 0:02:14.1]} 15. Bb4 {[%clk 0:02:26.9]}
15... Ra8 {[%clk 0:02:10.5]} 16. Ng5 {[%clk 0:02:26.4]} 16... Bxe2 {[%clk
0:01:57.8]} 17. Rxe2 {[%clk 0:02:18.6]} 17... c5 {[%clk 0:01:47.6]} 18. Ne6
{[%clk 0:01:44.6]} 18... Qc8 {[%clk 0:01:40.5]} 19. Ba3 {[%clk 0:01:38.8]} 19...
Bh6 {[%clk 0:01:24.1]} 20. Nxf8 {[%clk 0:01:33.3]} 20... Kxf8 {[%clk 0:01:08.7]}
21. Bc1 {[%clk 0:01:32.9]} 21... f4 {[%clk 0:01:06.2]} 22. Rb2 {[%clk
0:01:29.7]} 22... Qh3 {[%clk 0:00:55.6]} 23. Qf1 {[%clk 0:01:22.8]} 23... Qd7
{[%clk 0:00:41.8]} 24. Rab1 {[%clk 0:01:19.2]} 24... Ra7 {[%clk 0:00:40.7]} 25.
Qe2 {[%clk 0:01:12.5]} 25... Nf6 {[%clk 0:00:30.8]} 26. Rb3 {[%clk 0:01:03.3]}
26... g5 {[%clk 0:00:23.1]} 27. f3 {[%clk 0:00:52.3]} 27... g4 {[%clk
0:00:18.2]} 28. Bd2 {[%clk 0:00:37.1]} 28... Ng6 {[%clk 0:00:14.9]} 29. Be1
{[%clk 0:00:19.9]} 29... Kg8 {[%clk 0:00:13.1]} 30. fxg4 {[%clk 0:00:20]} 30...
Nxg4 {[%clk 0:00:12.3]} 31. Qb2 {[%clk 0:00:19.9]} 31... Ne3 {[%clk 0:00:10.6]}
32. Rxb7 {[%clk 0:00:15.7]} 32... Rxb7 {[%clk 0:00:09.6]} 33. Qxb7 {[%clk
0:00:16.2]} 33... Qh3 {[%clk 0:00:08.9]} 34. Qb2 {[%clk 0:00:14.4]} 34... Qf1#
{[%clk 0:00:07.7]} 0-1

[Event "*** Titled Tuesday Blitz"]
[Site "Chess.com"]
[Date "2021.02.16"]
[Round "7"]
[White "IwkooO"]
[Black "GameOverBro"]
[Result "1-0"]
[WhiteElo "2618"]
[BlackElo "2429"]
[TimeControl "180+1"]
[EndTime "11:18:30 PST"]
[Termination "IwkooO won by resignation"]

1. e4 {[%clk 0:02:56.4]} 1... d6 {[%clk 0:02:58.3]} 2. d4 {[%clk 0:02:55.6]}
2... Nf6 {[%clk 0:02:58.9]} 3. Nc3 {[%clk 0:02:55.4]} 3... e5 {[%clk 0:02:59.6]}
4. Nf3 {[%clk 0:02:55.2]} 4... Nbd7 {[%clk 0:02:59.9]} 5. Bc4 {[%clk 0:02:54.9]}
5... Be7 {[%clk 0:03:00.5]} 6. O-O {[%clk 0:02:54.7]} 6... c6 {[%clk 0:03:01.2]}
7. a4 {[%clk 0:02:54.6]} 7... h6 {[%clk 0:03:01.9]} 8. Re1 {[%clk 0:02:53.4]}
8... Qc7 {[%clk 0:03:02.5]} 9. h3 {[%clk 0:02:52.1]} 9... g5 {[%clk 0:03:02.4]}
10. dxe5 {[%clk 0:02:46.1]} 10... dxe5 {[%clk 0:03:03.3]} 11. Nh2 {[%clk
0:02:46.6]} 11... Nf8 {[%clk 0:03:01.3]} 12. Qf3 {[%clk 0:02:42.9]} 12... Ng6
{[%clk 0:02:59.5]} 13. Ng4 {[%clk 0:02:43.2]} 13... Bxg4 {[%clk 0:02:30.7]} 14.
hxg4 {[%clk 0:02:39.3]} 14... Qd7 {[%clk 0:02:23.5]} 15. Qf5 {[%clk 0:02:37.4]}
15... Rd8 {[%clk 0:02:11.2]} 16. Be3 {[%clk 0:02:01.4]} 16... b6 {[%clk
0:01:54.9]} 17. Qxd7+ {[%clk 0:01:59.1]} 17... Nxd7 {[%clk 0:01:47.7]} 18. Red1
{[%clk 0:01:40.7]} 18... Bc5 {[%clk 0:01:46.9]} 19. Bxc5 {[%clk 0:01:25.6]}
19... bxc5 {[%clk 0:01:28.9]} 20. Rd6 {[%clk 0:01:14.8]} 20... Rc8 {[%clk
0:01:25.3]} 21. Bxf7+ {[%clk 0:01:13.2]} 21... Ke7 {[%clk 0:01:24.5]} 22. Rxd7+
{[%clk 0:01:05.3]} 22... Kxd7 {[%clk 0:01:21.8]} 23. Bxg6 {[%clk 0:01:06.2]}
23... Rb8 {[%clk 0:01:20.1]} 24. b3 {[%clk 0:01:05.1]} 24... Ke7 {[%clk
0:01:20.3]} 25. Kf1 {[%clk 0:00:59.3]} 25... c4 {[%clk 0:01:20.1]} 26. Rb1
{[%clk 0:00:51.2]} 26... cxb3 {[%clk 0:01:17]} 27. cxb3 {[%clk 0:00:51.3]} 27...
Rhd8 {[%clk 0:01:17.2]} 28. Ke2 {[%clk 0:00:51.3]} 28... Rd4 {[%clk 0:01:16.8]}
29. Bf5 {[%clk 0:00:49.2]} 29... Kd6 {[%clk 0:01:16.2]} 30. Bg6 {[%clk
0:00:44.4]} 30... Kc5 {[%clk 0:01:15.7]} 31. Bf7 {[%clk 0:00:44.2]} 31... Kb4
{[%clk 0:01:15.4]} 32. Nd1 {[%clk 0:00:40.4]} 32... Ka3 {[%clk 0:01:11.7]} 33.
Ne3 {[%clk 0:00:40]} 33... Rbd8 {[%clk 0:01:04.4]} 34. Nc2+ {[%clk 0:00:33.3]}
34... Ka2 {[%clk 0:01:03.3]} 35. Nxd4 {[%clk 0:00:33.3]} 35... Kxb1 {[%clk
0:00:58]} 36. Nxc6 {[%clk 0:00:33.4]} 36... Rc8 {[%clk 0:00:50.1]} 37. Bd5
{[%clk 0:00:19.7]} 37... a6 {[%clk 0:00:37]} 38. Nxe5 {[%clk 0:00:12.5]} 38...
Rc2+ {[%clk 0:00:36.4]} 39. Ke3 {[%clk 0:00:12.6]} 39... Rc3+ {[%clk 0:00:36.7]}
40. Nd3 {[%clk 0:00:13]} 40... Kc2 {[%clk 0:00:36.8]} 41. Bc4 {[%clk 0:00:13.5]}
41... Kd1 {[%clk 0:00:35.7]} 42. e5 {[%clk 0:00:13.9]} 42... Rc2 {[%clk
0:00:36]} 43. e6 {[%clk 0:00:14.4]} 43... Re2+ {[%clk 0:00:35.5]} 44. Kd4 {[%clk
0:00:15]} 44... a5 {[%clk 0:00:35.2]} 45. Ne5 {[%clk 0:00:15.3]} 1-0

[Event "*** Titled Tuesday Blitz"]
[Site "Chess.com"]
[Date "2021.02.16"]
[Round "7"]
[White "catzapto"]
[Black "akhairat"]
[Result "1/2-1/2"]
[WhiteElo "2101"]
[BlackElo "2330"]
[TimeControl "180+1"]
[EndTime "11:18:30 PST"]
[Termination "Game drawn by repetition"]

1. e4 {[%clk 0:03:00.9]} 1... e5 {[%clk 0:03:00.1]} 2. Nf3 {[%clk 0:03:00.5]}
2... Nc6 {[%clk 0:03:00.6]} 3. d4 {[%clk 0:03:01]} 3... exd4 {[%clk 0:03:00.6]}
4. Bc4 {[%clk 0:03:01.2]} 4... Nf6 {[%clk 0:03:00.3]} 5. e5 {[%clk 0:03:00.2]}
5... d5 {[%clk 0:03:00.6]} 6. Bb5 {[%clk 0:03:00.4]} 6... Ne4 {[%clk 0:03:01]}
7. Nxd4 {[%clk 0:03:00.2]} 7... Bc5 {[%clk 0:03:01.3]} 8. Nxc6 {[%clk
0:02:59.5]} 8... Bxf2+ {[%clk 0:02:55.2]} 9. Kf1 {[%clk 0:02:59.4]} 9... bxc6
{[%clk 0:02:48.6]} 10. Bxc6+ {[%clk 0:02:59.1]} 10... Kf8 {[%clk 0:02:45.6]} 11.
Qd3 {[%clk 0:02:58.9]} 11... Rb8 {[%clk 0:02:37.6]} 12. Bxd5 {[%clk 0:02:53.5]}
12... Nc5 {[%clk 0:01:34.5]} 13. Qf3 {[%clk 0:02:50.5]} 13... Ne6 {[%clk
0:01:13.1]} 14. Kxf2 {[%clk 0:02:25.8]} 14... c6 {[%clk 0:01:00.9]} 15. Bxe6
{[%clk 0:02:17.3]} 15... Bxe6 {[%clk 0:01:01.8]} 16. Nc3 {[%clk 0:02:14.9]}
16... Qb6+ {[%clk 0:01:00.7]} 17. Qe3 {[%clk 0:02:11]} 17... Qb4 {[%clk
0:00:56.2]} 18. a3 {[%clk 0:02:03.1]} 18... Qh4+ {[%clk 0:00:55.7]} 19. Qg3
{[%clk 0:01:57.8]} 19... Qe7 {[%clk 0:00:55.4]} 20. b4 {[%clk 0:01:48.6]} 20...
a5 {[%clk 0:00:53.3]} 21. Bg5 {[%clk 0:01:31.1]} 21... Qa7+ {[%clk 0:00:49.7]}
22. Be3 {[%clk 0:01:22.1]} 22... Qa6 {[%clk 0:00:48.1]} 23. Bc5+ {[%clk
0:01:21]} 23... Kg8 {[%clk 0:00:48]} 24. Ne4 {[%clk 0:01:18.6]} 24... g6 {[%clk
0:00:25.1]} 25. Qg5 {[%clk 0:01:14.8]} 25... h5 {[%clk 0:00:20.1]} 26. Nf6+
{[%clk 0:01:13]} 26... Kg7 {[%clk 0:00:20]} 27. Nxh5+ {[%clk 0:01:12.7]} 27...
Rxh5 {[%clk 0:00:19.7]} 28. Qf6+ {[%clk 0:01:11.2]} 28... Kg8 {[%clk 0:00:19.8]}
29. g4 {[%clk 0:00:52.1]} 29... Bxg4 {[%clk 0:00:18.3]} 30. Rae1 {[%clk
0:00:47]} 30... Rf5+ {[%clk 0:00:17.8]} 31. Qxf5 {[%clk 0:00:45.7]} 31... Bxf5
{[%clk 0:00:18.7]} 32. h4 {[%clk 0:00:45.7]} 32... axb4 {[%clk 0:00:18.5]} 33.
h5 {[%clk 0:00:45.6]} 33... bxa3 {[%clk 0:00:18.1]} 34. hxg6 {[%clk 0:00:45.8]}
34... fxg6 {[%clk 0:00:18]} 35. e6 {[%clk 0:00:41.9]} 35... a2 {[%clk
0:00:17.4]} 36. e7 {[%clk 0:00:40.9]} 36... Re8 {[%clk 0:00:17.9]} 37. Bd4
{[%clk 0:00:37.3]} 37... Qc4 {[%clk 0:00:10]} 38. Rh8+ {[%clk 0:00:36.6]} 38...
Kf7 {[%clk 0:00:10.4]} 39. Rh7+ {[%clk 0:00:37.5]} 39... Kg8 {[%clk 0:00:10.3]}
40. Rh8+ {[%clk 0:00:37.8]} 40... Kf7 {[%clk 0:00:10.6]} 41. Rh7+ {[%clk
0:00:37.1]} 41... Kg8 {[%clk 0:00:10.8]} 42. Rh8+ {[%clk 0:00:36.9]} 1/2-1/2

[Event "*** Titled Tuesday Blitz"]
[Site "Chess.com"]
[Date "2021.02.16"]
[Round "7"]
[White "Deepweb2020"]
[Black "ljuks68"]
[Result "0-1"]
[WhiteElo "2518"]
[BlackElo "2400"]
[TimeControl "180+1"]
[EndTime "11:18:31 PST"]
[Termination "ljuks68 won by checkmate"]

1. Nf3 {[%clk 0:03:00.9]} 1... d5 {[%clk 0:02:59]} 2. c4 {[%clk 0:02:58.7]} 2...
c6 {[%clk 0:02:58.7]} 3. g3 {[%clk 0:02:57.2]} 3... Nf6 {[%clk 0:02:58.5]} 4.
Bg2 {[%clk 0:02:56.9]} 4... Bf5 {[%clk 0:02:58.8]} 5. O-O {[%clk 0:02:51.7]}
5... e6 {[%clk 0:02:59.2]} 6. b3 {[%clk 0:02:50]} 6... Nbd7 {[%clk 0:02:58]} 7.
Bb2 {[%clk 0:02:50.3]} 7... a5 {[%clk 0:02:55.6]} 8. Nc3 {[%clk 0:02:49.2]} 8...
Bc5 {[%clk 0:02:54.6]} 9. d4 {[%clk 0:02:47.6]} 9... Be7 {[%clk 0:02:52]} 10.
Nh4 {[%clk 0:02:46.6]} 10... Bg4 {[%clk 0:02:50.5]} 11. Qd2 {[%clk 0:02:43.7]}
11... Bh5 {[%clk 0:02:45.7]} 12. f4 {[%clk 0:02:37.6]} 12... O-O {[%clk
0:02:26.2]} 13. Rae1 {[%clk 0:02:29.4]} 13... a4 {[%clk 0:02:12]} 14. Nxa4
{[%clk 0:02:28.2]} 14... Ne4 {[%clk 0:02:11.4]} 15. Bxe4 {[%clk 0:02:28.1]}
15... dxe4 {[%clk 0:02:06.7]} 16. Ng2 {[%clk 0:02:28.1]} 16... b5 {[%clk
0:02:04.3]} 17. Nc3 {[%clk 0:02:23.8]} 17... bxc4 {[%clk 0:01:58.3]} 18. bxc4
{[%clk 0:02:15.5]} 18... Nb6 {[%clk 0:01:54.9]} 19. Ne3 {[%clk 0:02:12.5]} 19...
f5 {[%clk 0:01:44.3]} 20. Ra1 {[%clk 0:02:05.5]} 20... Bf6 {[%clk 0:01:35.8]}
21. Rfd1 {[%clk 0:02:05.1]} 21... Rb8 {[%clk 0:01:17.1]} 22. a4 {[%clk
0:02:02.5]} 22... c5 {[%clk 0:01:17.4]} 23. d5 {[%clk 0:01:50]} 23... exd5
{[%clk 0:01:15.3]} 24. cxd5 {[%clk 0:01:25.9]} 24... Bd4 {[%clk 0:01:10.6]} 25.
Nb5 {[%clk 0:01:13.4]} 25... Nc4 {[%clk 0:01:07.3]} 26. Bxd4 {[%clk 0:01:03.3]}
26... Nxd2 {[%clk 0:01:05.4]} 27. Be5 {[%clk 0:00:48.4]} 27... Nb3 {[%clk
0:01:02.6]} 28. Bxb8 {[%clk 0:00:45.8]} 28... Nxa1 {[%clk 0:00:51.7]} 29. Bc7
{[%clk 0:00:45.9]} 29... Qd7 {[%clk 0:00:51.1]} 30. Rxa1 {[%clk 0:00:45]} 30...
Bxe2 {[%clk 0:00:47.6]} 31. Bd6 {[%clk 0:00:27.4]} 31... Ra8 {[%clk 0:00:43.9]}
32. Nc7 {[%clk 0:00:21]} 32... Qxd6 {[%clk 0:00:27.2]} 33. Nxa8 {[%clk
0:00:20.8]} 33... Qb8 {[%clk 0:00:27.7]} 34. Kf2 {[%clk 0:00:17]} 34... Bd3
{[%clk 0:00:27.1]} 35. Nxf5 {[%clk 0:00:06.2]} 35... Qb2+ {[%clk 0:00:23.5]} 36.
Ke3 {[%clk 0:00:05.9]} 36... Qe2# {[%clk 0:00:22.9]} 0-1

[Event "*** Titled Tuesday Blitz"]
[Site "Chess.com"]
[Date "2021.02.16"]
[Round "7"]
[White "szefru"]
[Black "InitiatingASC"]
[Result "0-1"]
[WhiteElo "2258"]
[BlackElo "2426"]
[TimeControl "180+1"]
[EndTime "11:18:32 PST"]
[Termination "InitiatingASC won by resignation"]

1. d4 {[%clk 0:03:00.9]} 1... Nf6 {[%clk 0:02:58.7]} 2. b3 {[%clk 0:03:00.9]}
2... e6 {[%clk 0:02:57.8]} 3. Bb2 {[%clk 0:03:01.1]} 3... b6 {[%clk 0:02:57.3]}
4. Nd2 {[%clk 0:03:01.4]} 4... Bb7 {[%clk 0:02:57.8]} 5. Ngf3 {[%clk 0:03:01.8]}
5... Be7 {[%clk 0:02:58.1]} 6. e3 {[%clk 0:03:02.2]} 6... O-O {[%clk 0:02:58.2]}
7. Bd3 {[%clk 0:03:02.5]} 7... c5 {[%clk 0:02:57]} 8. c4 {[%clk 0:03:02.4]} 8...
cxd4 {[%clk 0:02:57.2]} 9. exd4 {[%clk 0:03:01]} 9... d6 {[%clk 0:02:57.7]} 10.
O-O {[%clk 0:03:00.6]} 10... Nbd7 {[%clk 0:02:57.8]} 11. Re1 {[%clk 0:02:56.8]}
11... Qc7 {[%clk 0:02:56.1]} 12. Rc1 {[%clk 0:02:53.8]} 12... Rfe8 {[%clk
0:02:55.1]} 13. h3 {[%clk 0:02:50.5]} 13... Rac8 {[%clk 0:02:51.1]} 14. Nf1
{[%clk 0:02:43.5]} 14... Qc6 {[%clk 0:02:42.9]} 15. Ng3 {[%clk 0:02:41]} 15...
Nf8 {[%clk 0:02:42.8]} 16. Kh2 {[%clk 0:02:27.7]} 16... Ng6 {[%clk 0:02:42.7]}
17. Rg1 {[%clk 0:02:26.8]} 17... Nf4 {[%clk 0:02:33.9]} 18. Bf1 {[%clk
0:02:25.1]} 18... Ne4 {[%clk 0:02:22.6]} 19. Nxe4 {[%clk 0:02:22.9]} 19... Qxe4
{[%clk 0:02:22.8]} 20. Bc3 {[%clk 0:02:13.4]} 20... Bf6 {[%clk 0:02:14.4]} 21.
Qd2 {[%clk 0:01:58]} 21... Qf5 {[%clk 0:02:01.5]} 22. Qe3 {[%clk 0:01:27]} 22...
Nxh3 {[%clk 0:01:53.1]} 23. Bd3 {[%clk 0:01:17.1]} 23... Qh5 {[%clk 0:01:49.6]}
24. gxh3 {[%clk 0:01:12.8]} 24... Bxf3 {[%clk 0:01:49.5]} 25. Rg3 {[%clk
0:01:11.4]} 25... Bb7 {[%clk 0:01:41.3]} 26. Rcg1 {[%clk 0:01:10.7]} 26... g6
{[%clk 0:01:41.5]} 27. Be2 {[%clk 0:01:05.6]} 27... Qf5 {[%clk 0:01:32]} 28. Bd3
{[%clk 0:01:00.6]} 28... Qh5 {[%clk 0:01:20.2]} 29. Be2 {[%clk 0:00:58.9]} 29...
Qh4 {[%clk 0:01:10.8]} 30. Rg4 {[%clk 0:00:49.5]} 30... Qh5 {[%clk 0:01:11]} 31.
Rxg6+ {[%clk 0:00:39.3]} 31... Qxg6 {[%clk 0:01:09.6]} 32. Rxg6+ {[%clk
0:00:39.2]} 32... hxg6 {[%clk 0:01:10.1]} 33. Bb4 {[%clk 0:00:33.7]} 33... d5
{[%clk 0:01:01]} 34. Bf3 {[%clk 0:00:32.2]} 34... Red8 {[%clk 0:00:54.5]} 35.
Qf4 {[%clk 0:00:31.1]} 35... Bg7 {[%clk 0:00:49]} 36. c5 {[%clk 0:00:28.7]}
36... e5 {[%clk 0:00:39.4]} 37. dxe5 {[%clk 0:00:23.3]} 37... bxc5 {[%clk
0:00:39.3]} 38. Ba5 {[%clk 0:00:22.6]} 38... Re8 {[%clk 0:00:37.7]} 39. e6
{[%clk 0:00:20.1]} 39... Rxe6 {[%clk 0:00:34.7]} 40. Bg4 {[%clk 0:00:20.1]}
40... Be5 {[%clk 0:00:35.2]} 41. Qxe5 {[%clk 0:00:17.2]} 41... Rxe5 {[%clk
0:00:35.5]} 42. Bxc8 {[%clk 0:00:18.1]} 42... Bxc8 {[%clk 0:00:36.3]} 43. Bc7
{[%clk 0:00:17.3]} 43... Re2 {[%clk 0:00:35.4]} 44. Kg3 {[%clk 0:00:16.8]} 44...
Rxa2 {[%clk 0:00:35.1]} 0-1

[Event "*** Titled Tuesday Blitz"]
[Site "Chess.com"]
[Date "2021.02.16"]
[Round "7"]
[White "Mazetovic"]
[Black "DrVelja"]
[Result "0-1"]
[WhiteElo "2698"]
[BlackElo "2873"]
[TimeControl "180+1"]
[EndTime "11:18:34 PST"]
[Termination "DrVelja won on time"]

1. e4 {[%clk 0:02:58.5]} 1... c6 {[%clk 0:03:00]} 2. d4 {[%clk 0:02:54.7]} 2...
d5 {[%clk 0:03:00.9]} 3. e5 {[%clk 0:02:54.8]} 3... Bf5 {[%clk 0:03:00.6]} 4.
Nf3 {[%clk 0:02:55.5]} 4... e6 {[%clk 0:03:00.7]} 5. Be2 {[%clk 0:02:56.3]} 5...
c5 {[%clk 0:03:00]} 6. Be3 {[%clk 0:02:52.8]} 6... Qb6 {[%clk 0:02:59.5]} 7. O-O
{[%clk 0:02:50.8]} 7... Qxb2 {[%clk 0:02:55.7]} 8. c4 {[%clk 0:02:50.9]} 8...
Nc6 {[%clk 0:02:42.5]} 9. dxc5 {[%clk 0:02:35.3]} 9... d4 {[%clk 0:02:17.5]} 10.
Nxd4 {[%clk 0:02:31.9]} 10... O-O-O {[%clk 0:02:04.8]} 11. Qb3 {[%clk
0:02:26.2]} 11... Qxa1 {[%clk 0:01:59.6]} 12. Nxc6 {[%clk 0:02:20.5]} 12... bxc6
{[%clk 0:01:31.1]} 13. Nc3 {[%clk 0:01:56.3]} 13... Qxf1+ {[%clk 0:01:28.4]} 14.
Kxf1 {[%clk 0:01:57.2]} 14... Ne7 {[%clk 0:01:27.7]} 15. Qa4 {[%clk 0:01:12.5]}
15... Rd7 {[%clk 0:01:18.7]} 16. Qa6+ {[%clk 0:01:04.2]} 16... Kb8 {[%clk
0:01:16.7]} 17. g4 {[%clk 0:00:55]} 17... Bg6 {[%clk 0:01:15.8]} 18. Bf3 {[%clk
0:00:41.3]} 18... Rc7 {[%clk 0:01:09]} 19. a4 {[%clk 0:00:34.4]} 19... h5 {[%clk
0:01:03.1]} 20. h3 {[%clk 0:00:20.4]} 20... hxg4 {[%clk 0:01:01.1]} 21. hxg4
{[%clk 0:00:20.8]} 21... Rh3 {[%clk 0:00:50.5]} 22. Kg2 {[%clk 0:00:20.2]} 22...
Rxf3 {[%clk 0:00:33.5]} 23. Kxf3 {[%clk 0:00:21.1]} 23... Bd3 {[%clk 0:00:34.2]}
24. Bf4 {[%clk 0:00:16]} 24... Ng6 {[%clk 0:00:34]} 25. Bg3 {[%clk 0:00:16]}
25... Bxc5 {[%clk 0:00:33.2]} 26. Ne4 {[%clk 0:00:15.1]} 26... Bb4 {[%clk
0:00:26.8]} 27. Nd6 {[%clk 0:00:13.4]} 27... Nf8 {[%clk 0:00:22.2]} 28. Bh4
{[%clk 0:00:09.9]} 28... f6 {[%clk 0:00:17.4]} 29. Ke3 {[%clk 0:00:10]} 29...
Bf1 {[%clk 0:00:17.2]} 30. f4 {[%clk 0:00:10]} 30... Nd7 {[%clk 0:00:16.5]} 31.
Ne4 {[%clk 0:00:05.3]} 31... Ka8 {[%clk 0:00:07.9]} 32. exf6 {[%clk 0:00:01.7]}
32... gxf6 {[%clk 0:00:08.8]} 0-1

[Event "*** Titled Tuesday Blitz"]
[Site "Chess.com"]
[Date "2021.02.16"]
[Round "7"]
[White "lilleper1"]
[Black "ChessWarrior7197"]
[Result "0-1"]
[WhiteElo "2836"]
[BlackElo "2956"]
[TimeControl "180+1"]
[EndTime "11:18:35 PST"]
[Termination "ChessWarrior7197 won by resignation"]

1. d4 {[%clk 0:03:00.9]} 1... d5 {[%clk 0:02:57.7]} 2. c4 {[%clk 0:03:00.8]}
2... e6 {[%clk 0:02:57.9]} 3. Nf3 {[%clk 0:03:00.9]} 3... Nf6 {[%clk 0:02:58.1]}
4. g3 {[%clk 0:03:01.1]} 4... Bb4+ {[%clk 0:02:57.2]} 5. Bd2 {[%clk 0:03:01]}
5... a5 {[%clk 0:02:57.7]} 6. Bg2 {[%clk 0:02:59.3]} 6... O-O {[%clk 0:02:57.7]}
7. a3 {[%clk 0:02:56.7]} 7... Be7 {[%clk 0:02:57.2]} 8. Qc2 {[%clk 0:02:55.3]}
8... c6 {[%clk 0:02:55.9]} 9. O-O {[%clk 0:02:55.2]} 9... Nbd7 {[%clk
0:02:55.8]} 10. Bf4 {[%clk 0:02:55.1]} 10... Ne4 {[%clk 0:02:50.2]} 11. Nc3
{[%clk 0:02:52.6]} 11... f5 {[%clk 0:02:49.8]} 12. Nxe4 {[%clk 0:02:47.1]} 12...
fxe4 {[%clk 0:02:48.6]} 13. Ne5 {[%clk 0:02:47.3]} 13... Bf6 {[%clk 0:02:41.7]}
14. Nxd7 {[%clk 0:02:44.4]} 14... Bxd7 {[%clk 0:02:41.6]} 15. Rad1 {[%clk
0:02:41.2]} 15... Be8 {[%clk 0:02:40.5]} 16. f3 {[%clk 0:02:36.8]} 16... exf3
{[%clk 0:02:40.1]} 17. exf3 {[%clk 0:02:34.2]} 17... Bg6 {[%clk 0:02:41]} 18.
Qe2 {[%clk 0:02:32.8]} 18... Re8 {[%clk 0:02:38.4]} 19. c5 {[%clk 0:02:22.3]}
19... b6 {[%clk 0:02:31.9]} 20. Be5 {[%clk 0:02:16.8]} 20... bxc5 {[%clk
0:02:26.1]} 21. dxc5 {[%clk 0:02:17.7]} 21... Bxe5 {[%clk 0:02:23.5]} 22. Qxe5
{[%clk 0:02:18.6]} 22... Rb8 {[%clk 0:02:24.3]} 23. Rfe1 {[%clk 0:02:08.8]}
23... Qf6 {[%clk 0:02:23.7]} 24. Qd6 {[%clk 0:01:54]} 24... e5 {[%clk
0:02:19.1]} 25. Qxf6 {[%clk 0:01:05.6]} 25... gxf6 {[%clk 0:02:19]} 26. Rd2
{[%clk 0:01:06.5]} 26... Rb5 {[%clk 0:02:18.5]} 27. Rc1 {[%clk 0:01:06.6]} 27...
Reb8 {[%clk 0:02:17.9]} 28. Bh3 {[%clk 0:01:01.6]} 28... Rxb2 {[%clk 0:02:11]}
29. Rxb2 {[%clk 0:01:01.1]} 29... Rxb2 {[%clk 0:02:11.9]} 30. Bd7 {[%clk
0:01:01.5]} 30... d4 {[%clk 0:02:05.3]} 31. Bxc6 {[%clk 0:01:01.7]} 31... Kf8
{[%clk 0:01:45]} 32. Ba4 {[%clk 0:00:54.4]} 32... Ke7 {[%clk 0:01:43.1]} 33. c6
{[%clk 0:00:54.6]} 33... Rb1 {[%clk 0:01:38.6]} 34. Rxb1 {[%clk 0:00:42.6]}
34... Bxb1 {[%clk 0:01:39.5]} 35. c7 {[%clk 0:00:41]} 35... Bf5 {[%clk
0:01:39.2]} 36. Bc2 {[%clk 0:00:41.2]} 36... Bd7 {[%clk 0:01:24]} 37. Bxh7
{[%clk 0:00:37.4]} 37... Kd6 {[%clk 0:01:24.4]} 38. Bd3 {[%clk 0:00:37]} 38...
Kxc7 {[%clk 0:01:24.3]} 39. h4 {[%clk 0:00:37.5]} 39... Kd6 {[%clk 0:01:24.5]}
40. h5 {[%clk 0:00:34.5]} 40... Ke7 {[%clk 0:01:23.6]} 41. h6 {[%clk 0:00:33.5]}
41... Kf7 {[%clk 0:01:20.7]} 42. g4 {[%clk 0:00:28.5]} 42... Bc6 {[%clk
0:01:13.9]} 43. Kf2 {[%clk 0:00:28.6]} 43... Kg8 {[%clk 0:01:13.5]} 44. Kg3
{[%clk 0:00:22.1]} 44... Kh8 {[%clk 0:01:13.6]} 45. Kf2 {[%clk 0:00:20.3]} 45...
Bd5 {[%clk 0:01:13.4]} 46. Kg3 {[%clk 0:00:20.1]} 46... Bb7 {[%clk 0:01:10.3]}
47. Kf2 {[%clk 0:00:19.8]} 47... Bc6 {[%clk 0:01:10.9]} 48. Kg3 {[%clk
0:00:19.6]} 48... Bd5 {[%clk 0:01:11.4]} 49. Kf2 {[%clk 0:00:18.6]} 49... Bg8
{[%clk 0:01:11.4]} 50. Kg3 {[%clk 0:00:16.1]} 50... Bh7 {[%clk 0:01:11.4]} 51.
Bxh7 {[%clk 0:00:15.1]} 51... Kxh7 {[%clk 0:01:11.2]} 52. f4 {[%clk 0:00:15.7]}
52... Kxh6 {[%clk 0:01:08.1]} 53. g5+ {[%clk 0:00:07.9]} 53... Kg6 {[%clk
0:01:04.1]} 54. gxf6 {[%clk 0:00:07.4]} 54... e4 {[%clk 0:01:04.5]} 0-1